bitfinex/quotes_SOLUSD_20260222
["timestamp","ask_amount","ask_price","bid_price","bid_amount"]
[1771773089558,61.8,83.409,83.379,1.63023472]
[1771773090859,61.8,83.409,83.381,1.63023472]
[1771773091058,1.55592585,83.413,83.381,1.63023472]
[1771773093254,1.55592585,83.413,83.383,1.63023472]
[1771773094672,1.55592585,83.413,83.384,11.99270843]
[1771773094872,1.55592585,83.412,83.385,1.63023472]
[1771773096276,1.55592585,83.412,83.387,1.63023472]
[1771773096574,1.55592585,83.41,83.387,1.63023472]
[1771773098668,1.55592585,83.41,83.388,67.54646166]
[1771773098861,1.49258517,83.408,83.388,53.96]
[1771773099276,61.8,83.411,83.389,1.5943285]
[1771773099774,1.49258517,83.41,83.389,1.5943285]
[1771773100869,11.98911388,83.409,83.388,53.96]
[1771773101075,1.49258517,83.408,83.388,53.96]
[1771773101674,1.49258517,83.408,83.379,11.99331199]
[1771773102178,1.49258517,83.406,83.372,1.5943285]
[1771773102772,1.49258517,83.404,83.374,1.5943285]
[1771773104671,1.49258517,83.404,83.376,1.5943285]
[1771773106384,1.49258517,83.404,83.378,1.5943285]
[1771773106686,61.8,83.407,83.378,1.5943285]
[1771773108078,61.8,83.407,83.38,1.5943285]
[1771773108384,1.49258517,83.405,83.38,1.5943285]
[1771773108681,1.49258517,83.405,83.381,13.58746842]
[1771773108876,1.49258517,83.405,83.382,1.5943285]
[1771773109981,1.49258517,83.405,83.384,1.5943285]
[1771773111485,1.49258517,83.405,83.385,11.9925646]
[1771773111691,1.49258517,83.436,83.39,1.5943285]
[1771773114695,1.49258517,83.439,83.392,1.5943285]
[1771773116675,1.49258517,83.437,83.394,1.5943285]
[1771773119099,1.49258517,83.435,83.396,1.5943285]
[1771773119698,1.49258517,83.435,83.398,1.5943285]
[1771773121391,29.96100879,83.442,83.4,1.5943285]
[1771773121392,1.49258517,83.433,83.4,1.5943285]
[1771773123997,1.49258517,83.43,83.402,1.5943285]
[1771773127509,11.98623979,83.429,83.402,1.5943285]
[1771773127685,1.49258517,83.428,83.402,1.5943285]
[1771773127884,1.49258517,83.428,83.404,1.5943285]
[1771773128997,1.49258517,83.428,83.403,11.98997637]
[1771773129197,1.49258517,83.428,83.404,53.96]
[1771773129397,1.590819,83.426,83.404,53.96]
[1771773130198,1.590819,83.426,83.405,1.62047812]
[1771773131490,1.590819,83.426,83.405,13.61016698]
[1771773132301,1.590819,83.426,83.407,13.60987948]
[1771773134106,1.590819,83.426,83.408,53.96]
[1771773134903,11.98514443,83.437,83.41,1.55908149]
[1771773135402,1.56420755,83.436,83.41,1.55908149]
[1771773136613,1.56420755,83.434,83.41,1.55908149]
[1771773138898,1.56420755,83.434,83.411,53.96]
[1771773139691,1.56420755,83.434,83.411,55.51908149]
[1771773143517,1.56420755,83.434,83.411,1.55908149]
[1771773143719,13.54901081,83.439,83.415,1.55908149]
[1771773144215,1.56420755,83.438,83.415,1.55908149]
[1771773144596,1.56420755,83.436,83.415,1.55908149]
[1771773145817,11.98537783,83.435,83.415,1.55908149]
[1771773146019,1.56420755,83.434,83.415,1.55908149]
[1771773149313,53.36775321,83.437,83.417,1.55908149]
[1771773149522,13.54801048,83.446,83.417,1.55908149]
[1771773150221,1.56420755,83.445,83.417,1.55908149]
[1771773151611,11.98254109,83.455,83.419,1.55908149]
[1771773152920,1.56420755,83.454,83.421,1.55908149]
[1771773154303,1.56420755,83.449,83.412,53.96]
[1771773155305,1.56420755,83.447,83.413,11.98853895]
[1771773156218,1.56420755,83.447,83.36,1.19961612]
[1771773156219,1.56420755,83.429,83.382,1.55908149]
[1771773156524,1.56420755,83.429,83.414,53.96]
[1771773156918,1.56420755,83.429,83.413,1.55908149]
[1771773157216,1.56420755,83.429,83.388,1.55908149]
[1771773157423,1.56420755,83.427,83.39,1.55908149]
[1771773158120,1.56420755,83.427,83.392,1.54921883]
[1771773160327,1.49418774,83.425,83.394,1.54921883]
[1771773161525,1.49418774,83.423,83.396,1.54921883]
[1771773162803,1.49418774,83.419,83.396,1.54921883]
[1771773163322,1.49418774,83.419,83.391,53.96]
[1771773163514,1.49418774,83.417,83.392,11.99155794]
[1771773163710,1.49418774,83.417,83.392,13.54077677]
[1771773163915,1.49418774,83.417,83.393,1.54921883]
[1771773164224,1.49418774,83.418,83.382,0.14216157]
[1771773164430,1.49418774,83.418,83.385,1.54921883]
[1771773165424,11.98796408,83.417,83.387,1.54921883]
[1771773165723,4.58509858,83.4,83.377,0.28432314]
[1771773165922,4.58509858,83.4,83.385,1.54921883]
[1771773166124,3.09091084,83.4,83.385,1.54921883]
[1771773166343,3.09091084,83.42,83.386,0.28432314]
[1771773166512,1.49418774,83.424,83.395,1.54921883]
[1771773167611,11.98710187,83.423,83.397,1.54921883]
[1771773167818,3.09091084,83.42,83.397,1.54921883]
[1771773168120,3.09091084,83.42,83.399,1.54921883]
[1771773168329,1.49418774,83.419,83.399,1.54921883]
[1771773168719,1.49418774,83.409,83.383,0.28432314]
[1771773168923,1.49418774,83.399,83.363,11.99572952]
[1771773169119,1.49418774,83.389,83.343,3.69383402]
[1771773169437,1.49418774,83.389,83.344,0.28432314]
[1771773169634,1.49418774,83.387,83.349,0.28432314]
[1771773169827,1.49418774,83.379,83.345,11.99832023]
[1771773170019,41.97246606,83.388,83.345,11.99832023]
[1771773170020,3.09091084,83.37,83.345,11.99832023]
[1771773170420,1.49418774,83.372,83.345,11.99832023]
[1771773170638,1.49418774,83.378,83.345,11.99832023]
[1771773170838,1.49418774,83.378,83.346,1.54921883]
[1771773173834,1.49418774,83.388,83.352,1.54921883]
[1771773174032,11.99252372,83.386,83.356,1.54921883]
[1771773176329,11.99252372,83.386,83.358,1.54921883]
[1771773176524,1.49418774,83.385,83.358,1.54921883]
[1771773177132,11.99252372,83.386,83.358,1.54921883]
[1771773177746,1.49418774,83.398,83.364,1.54921883]
[1771773178047,1.49418774,83.398,83.357,41.98807537]
[1771773178048,1.49418774,83.409,83.366,1.54921883]
[1771773178737,11.98925762,83.408,83.376,1.54921883]
[1771773179647,13.48258297,83.414,83.378,1.54921883]
[1771773181541,13.48258297,83.414,83.379,11.9934276]
[1771773181850,1.49418774,83.413,83.38,1.54921883]
[1771773182154,11.98839523,83.414,83.386,1.54921883]
[1771773182647,1.49418774,83.413,83.386,1.54921883]
[1771773185440,1.49418774,83.411,83.387,53.98]
[1771773186458,1.49418774,83.411,83.387,55.52921883]
[1771773186656,1.49418774,83.411,83.388,1.54921883]
[1771773187550,1.49418774,83.399,83.355,1.54921883]
[1771773187858,1.49418774,83.389,83.355,1.54921883]
[1771773188066,1.49418774,83.389,83.357,1.47354396]
[1771773188769,1.49781891,83.387,83.358,1.47354396]
[1771773191671,1.49781891,83.385,83.358,1.47354396]
[1771773194561,29.98010493,83.389,83.358,1.47354396]
[1771773194562,1.52469853,83.382,83.358,1.47354396]
[1771773195766,33.06709057,83.4,83.36,1.42135577]
[1771773195968,1.52469853,83.395,83.36,1.42135577]
[1771773199374,1.52469853,83.395,83.359,65.97630513]
[1771773199375,1.52469853,83.393,83.362,1.42135577]
[1771773200369,1.52469853,83.389,83.363,53.98]
[1771773200570,1.52469853,83.387,83.363,53.98]
[1771773201358,1.52469853,83.387,83.339,29.99787324]
[1771773201359,3.09091084,83.38,83.339,29.99787324]
[1771773201559,1.52469853,83.369,83.334,1.42135577]
[1771773202668,13.5197086,83.368,83.336,1.42135577]
[1771773202867,1.52469853,83.367,83.336,1.42135577]
[1771773206171,11.99529784,83.366,83.336,1.42135577]
[1771773206400,1.52469853,83.365,83.336,1.42135577]
[1771773206583,53.36775321,83.365,83.336,1.42135577]
[1771773206879,1.52469853,83.364,83.338,1.42135577]
[1771773208173,11.99572952,83.363,83.34,1.42135577]
[1771773208782,1.52469853,83.362,83.34,1.42135577]
[1771773209563,1.52469853,83.36,83.34,1.42135577]
[1771773210181,1.52469853,83.36,83.342,1.42135577]
[1771773210881,1.52469853,83.36,83.344,1.42135577]
[1771773211887,11.99601732,83.361,83.344,1.42135577]
[1771773212086,53.36775321,83.36,83.344,1.42135577]
[1771773213081,1.52469853,83.376,83.346,1.05534235]
[1771773213290,1.52469853,83.405,83.353,1.05534235]
[1771773213494,1.52469853,83.405,83.355,1.05534235]
[1771773214688,1.52469853,83.402,83.357,1.05244126]
[1771773216386,1.52469853,83.399,83.357,1.05244126]
[1771773217897,1.52469853,83.389,83.358,13.04466244]
[1771773218188,1.52469853,83.389,83.358,11.99644905]
[1771773220391,1.40689511,83.387,83.359,53.98]
[1771773220574,1.40689511,83.385,83.359,53.98]
[1771773221188,1.40689511,83.385,83.36,1.04750295]
[1771773223896,1.40689511,83.385,83.362,1.04699126]
[1771773226698,3.09675228,83.37,83.35,0.5]
[1771773226997,3.09675228,83.37,83.344,11.99837537]
[1771773226998,1.40689511,83.368,83.344,11.99837537]
[1771773227681,46.53172238,83.369,83.347,1.04633601]
[1771773228202,46.53172238,83.369,83.349,1.04633601]
[1771773228601,46.53172238,83.369,83.35,53.98]
[1771773228801,1.40689511,83.368,83.35,53.98]
[1771773229602,1.40689511,83.368,83.35,55.02601957]
[1771773229903,1.40689511,83.368,83.351,1.04601957]
[1771773232587,47.93861749,83.368,83.351,1.04601957]
[1771773235897,47.93861749,83.368,83.35,54.48]
[1771773235898,46.53172238,83.368,83.353,1.04511295]
[1771773236498,46.53172238,83.368,83.355,1.04496787]
[1771773238493,1.40689511,83.374,83.355,1.04496787]
[1771773240690,1.40689511,83.374,83.354,53.98]
[1771773242010,46.53172238,83.378,83.356,1.04426705]
[1771773242386,1.40689511,83.377,83.356,1.04426705]
[1771773242992,1.40689511,83.377,83.358,1.04413168]
[1771773243608,11.99385914,83.376,83.354,53.98]
[1771773243934,1.40689511,83.375,83.354,53.98]
[1771773245215,1.40689511,83.375,83.355,53.98]
[1771773249913,1.40689511,83.375,83.356,53.98]
[1771773250410,1.52023281,83.369,83.356,53.98]
[1771773253724,3.09675228,83.37,83.356,53.98]
[1771773254117,3.09675228,83.37,83.356,55.02262355]
[1771773254512,1.48248273,83.379,83.357,1.04250705]
[1771773255129,1.48248273,83.378,83.357,1.04250705]
[1771773255925,3.09675228,83.37,83.357,1.04250705]
[1771773258732,1.48248273,83.378,83.357,1.04250705]
[1771773259034,3.09675228,83.37,83.357,1.04250705]
[1771773262839,1.48248273,83.369,83.356,53.98]
[1771773265232,1.48248273,83.374,83.357,1.04131064]
[1771773265434,3.09675228,83.37,83.357,1.04131064]
[1771773265838,1.48248273,83.375,83.357,1.04131064]
[1771773266042,3.09675228,83.37,83.357,1.04131064]
[1771773266338,46.53172238,83.378,83.357,11.99659296]
[1771773266721,1.5424431,83.389,83.358,0.28432314]
[1771773267322,1.5424431,83.389,83.36,0.28432314]
[1771773268543,1.5424431,83.409,83.36,0.28432314]
[1771773268743,32.2127327,83.416,83.363,5.64518502]
[1771773268924,3.09675228,83.44,83.406,1.49834977]
[1771773269441,15.08149987,83.44,83.408,1.49834977]
[1771773269745,11.98474759,83.44,83.408,1.49834977]
[1771773269922,3.09675228,83.43,83.408,1.49834977]
[1771773270122,11.98474759,83.44,83.408,1.49834977]
[1771773270423,3.09675228,83.43,83.408,1.49834977]
[1771773270945,1.48248273,83.429,83.408,1.49834977]
[1771773271330,1.48248273,83.429,83.409,13.48746365]
[1771773271529,1.48248273,83.429,83.401,11.9902639]
[1771773271851,19.32763976,83.45,83.406,1.49834977]
[1771773271852,1.48248273,83.447,83.406,1.49834977]
[1771773272163,1.48248273,83.439,83.406,1.49834977]
[1771773272443,1.48248273,83.439,83.416,1.49834977]
[1771773272659,1.48248273,83.447,83.416,1.49834977]
[1771773273026,1.48248273,83.447,83.423,1.49834977]
[1771773273250,1.48248273,83.447,83.424,0.28432314]
[1771773273425,1.48248273,83.447,83.425,13.48516427]
[1771773273619,3.09187869,83.46,83.426,1.49834977]
[1771773273841,1.48248273,83.459,83.426,1.49834977]
[1771773274922,1.48248273,83.459,83.427,53.96]
[1771773275323,1.48248273,83.449,83.428,11.98638346]
[1771773275522,1.48248273,83.449,83.429,1.49834977]
[1771773275722,1.48248273,83.459,83.429,1.49834977]
[1771773276126,1.48248273,83.449,83.427,53.96]
[1771773279926,1.52632192,83.439,83.41,11.98897014]
[1771773282452,1.52632192,83.437,83.403,1.41909837]
[1771773282643,1.52632192,83.429,83.403,1.41909837]
[1771773282847,1.52632192,83.419,83.398,1.41909837]
[1771773283035,1.52632192,83.419,83.393,13.4104462]
[1771773284241,1.52632192,83.409,83.388,11.9920345]
[1771773284544,1.52632192,83.409,83.388,13.41113287]
[1771773284747,1.52632192,83.409,83.389,1.41909837]
[1771773286235,1.52632192,83.419,83.391,1.41909837]
[1771773288057,1.52632192,83.419,83.393,11.99141414]
[1771773288245,1.52632192,83.419,83.394,1.41909837]
[1771773289261,1.52632192,83.419,83.395,0.28432314]
[1771773289554,1.52632192,83.419,83.395,1.70342151]
[1771773290549,11.98776021,83.419,83.392,53.96]
[1771773290756,1.52632192,83.418,83.392,53.96]
[1771773291542,1.52632192,83.418,83.393,11.99141414]
[1771773293150,1.52632192,83.418,83.393,13.41051251]
[1771773293358,1.52632192,83.418,83.394,1.41909837]
[1771773293755,28.69187869,83.42,83.392,67.3706546]
[1771773293756,1.52632192,83.416,83.392,67.3706546]
[1771773293947,1.52632192,83.416,83.393,53.96]
[1771773296759,1.52632192,83.416,83.394,11.99127035]
[1771773298669,1.52632192,83.416,83.394,13.41036872]
[1771773301767,1.52632192,83.416,83.395,1.41909837]
[1771773302566,1.52632192,83.416,83.396,53.96]
[1771773311177,1.50825722,83.414,83.396,55.44396244]
[1771773311368,1.50825722,83.414,83.396,53.96]
[1771773313869,3.09187869,83.41,83.384,1.48396244]
[1771773314077,3.09187869,83.41,83.33,102.6]
[1771773314078,1.50825722,83.409,83.385,53.96]
[1771773314371,1.53433928,83.399,83.385,53.96]
[1771773314671,1.53433928,83.399,83.369,1.53875403]
[1771773314875,1.53433928,83.398,83.369,1.53875403]
[1771773315877,1.53433928,83.397,83.37,13.53347635]
[1771773316064,1.53433928,83.397,83.371,1.53875403]
[1771773317178,1.53433928,83.403,83.371,1.53875403]
[1771773317479,37.59012014,83.402,83.371,1.53875403]
[1771773318157,37.59012014,83.402,83.365,0.14216157]
[1771773318158,37.59012014,83.402,83.374,1.53875403]
[1771773318775,39.12445942,83.402,83.374,1.53875403]
[1771773320576,25.6,83.402,83.376,1.53875403]
[1771773320784,3.09187869,83.41,83.375,11.99400299]
[1771773320785,1.53433928,83.418,83.384,1.53875403]
[1771773320961,1.53433928,83.438,83.386,1.53875403]
[1771773322386,1.53433928,83.436,83.388,1.82307717]
[1771773326369,1.53433928,83.434,83.394,0.28432314]
[1771773326687,1.53433928,83.434,83.395,1.53875403]
[1771773327486,1.53433928,83.434,83.397,1.53875403]
[1771773330795,1.53433928,83.429,83.399,1.53875403]
[1771773333294,1.53433928,83.419,83.386,11.99242079]
[1771773333595,1.53433928,83.409,83.386,11.99242079]
[1771773334890,13.52354977,83.409,83.386,11.99242079]
[1771773335098,1.53433928,83.408,83.386,11.99242079]
[1771773336699,1.53433928,83.408,83.386,1.53875403]
[1771773338095,1.53433928,83.408,83.387,53.96]
[1771773340199,1.56685222,83.399,83.355,1.43915844]
[1771773340385,1.56685222,83.379,83.355,1.43915844]
[1771773341294,1.56685222,83.379,83.338,3.69383402]
[1771773341488,1.56685222,83.379,83.343,1.43915844]
[1771773341689,1.56685222,83.379,83.338,3.69383402]
[1771773341690,1.56685222,83.379,83.345,1.43915844]
[1771773344011,1.56685222,83.379,83.35,1.43915844]
[1771773345210,1.56685222,83.379,83.352,1.43915844]
[1771773348115,1.56685222,83.379,83.354,11.99702473]
[1771773348608,1.56685222,83.379,83.354,13.43618317]
[1771773348997,1.56685222,83.377,83.354,13.43618317]
[1771773349213,1.56685222,83.377,83.354,11.99702473]
[1771773350809,1.56685222,83.377,83.349,1.43915844]
[1771773350810,1.56685222,83.377,83.355,53.98]
[1771773355623,1.56685222,83.377,83.356,11.99673688]
[1771773356806,1.56685222,83.375,83.355,53.98]
[1771773357014,1.56685222,83.369,83.355,53.98]
[1771773357221,1.56685222,83.369,83.312,65.37569864]
[1771773357222,1.56685222,83.369,83.338,1.43915844]
[1771773357427,1.56685222,83.359,83.338,1.43915844]
[1771773358129,1.56685222,83.359,83.339,55.41915844]
[1771773359611,1.56685222,83.359,83.339,53.98]
[1771773361711,1.56685222,83.369,83.341,1.43915844]
[1771773362026,1.56685222,83.366,83.341,1.43915844]
[1771773363210,3.09204425,83.36,83.339,53.98]
[1771773363431,1.56685222,83.359,83.339,53.98]
[1771773365129,1.56685222,83.359,83.337,53.98]
[1771773366731,1.56685222,83.349,83.321,1.43915844]
[1771773366917,1.56685222,83.349,83.322,1.43915844]
[1771773367633,1.56685222,83.339,83.317,12.00232977]
[1771773367815,1.56685222,83.339,83.311,1.43915844]
[1771773368018,3.09204425,83.32,83.31,0.1]
[1771773368324,1.54513132,83.319,83.3,0.1]
[1771773369020,1.54513132,83.317,83.3,0.1]
[1771773369218,1.54513132,83.317,83.3,12.10480192]
[1771773369422,1.54513132,83.327,83.301,1.54056881]
[1771773369733,1.54513132,83.325,83.301,1.54056881]
[1771773370516,1.54513132,83.331,83.301,1.54056881]
[1771773370843,1.54513132,83.346,83.305,1.54056881]
[1771773371045,1.54513132,83.344,83.307,1.54056881]
[1771773371716,1.54513132,83.344,83.315,1.54056881]
[1771773373129,1.54513132,83.344,83.317,1.54056881]
[1771773375540,1.54513132,83.344,83.318,66.0022084]
[1771773375722,1.54513132,83.344,83.319,1.51366457]
[1771773376922,3.09204425,83.36,83.325,1.51366457]
[1771773377127,11.99371529,83.377,83.325,1.51366457]
[1771773377326,3.09204425,83.36,83.325,1.51366457]
[1771773377941,3.69383402,83.39,83.327,1.51366457]
[1771773378247,3.09204425,83.36,83.327,1.51366457]
[1771773378627,3.09204425,83.37,83.327,1.51366457]
[1771773379055,1.52411751,83.369,83.327,1.51366457]
[1771773379940,11.99422947,83.374,83.335,1.51366457]
[1771773380248,11.99286748,83.383,83.345,1.51366457]
[1771773380622,1.52411751,83.389,83.355,1.51366457]
[1771773381144,1.52411751,83.389,83.357,1.51366457]
[1771773381326,1.52411751,83.369,83.335,1.51366457]
[1771773381931,1.52411751,83.369,83.341,1.51366457]
[1771773382134,1.52411751,83.376,83.345,1.51366457]
[1771773382644,1.52411751,83.376,83.312,60.01486543]
[1771773382645,1.52411751,83.359,83.337,1.51366457]
[1771773383536,1.52411751,83.372,83.337,1.51366457]
[1771773383738,1.52411751,83.378,83.345,1.51366457]
[1771773384234,1.52411751,83.369,83.347,1.51366457]
[1771773384435,3.09204425,83.36,83.341,1.51366457]
[1771773384634,1.52411751,83.359,83.335,13.51329978]
[1771773386043,1.52411751,83.359,83.336,1.51366457]
[1771773386237,1.52411751,83.357,83.336,1.51366457]
[1771773386441,1.52411751,83.357,83.32,1.51366457]
[1771773389447,1.52411751,83.339,83.312,1.51366457]
[1771773390138,1.52411751,83.333,83.312,1.51366457]
[1771773392347,1.52411751,83.333,83.311,1.51366457]
[1771773392549,1.52411751,83.339,83.311,1.51366457]
[1771773394947,1.52411751,83.339,83.313,1.51366457]
[1771773396645,1.52411751,83.349,83.315,1.51366457]
[1771773396948,1.52411751,83.349,83.317,1.51366457]
[1771773398034,1.52411751,83.349,83.32,1.49602122]
[1771773398852,1.5163759,83.36,83.32,1.49602122]
[1771773399052,3.09885565,83.35,83.32,1.49602122]
[1771773399255,1.5163759,83.339,83.32,1.49602122]
[1771773399557,3.09885565,83.35,83.32,1.49602122]
[1771773399938,1.5163759,83.355,83.322,1.49602122]
[1771773400134,3.09885565,83.36,83.328,1.49602122]
[1771773400339,4.61523155,83.36,83.328,1.49602122]
[1771773400540,1.5163759,83.359,83.328,1.49602122]
[1771773401436,4.61523155,83.35,83.328,1.49602122]
[1771773401641,1.5163759,83.349,83.327,12.00091206]
[1771773401957,1.5163759,83.349,83.328,1.49602122]
[1771773403860,1.5163759,83.358,83.33,1.49602122]
[1771773404556,1.5163759,83.358,83.331,12.000336]
[1771773404862,1.5163759,83.358,83.332,1.49602122]
[1771773405262,1.5163759,83.365,83.332,1.49602122]
[1771773405466,1.5163759,83.365,83.336,1.49602122]
[1771773405659,3.09885565,83.37,83.336,1.49602122]
[1771773405960,4.61523155,83.37,83.336,1.49602122]
[1771773406359,1.5163759,83.369,83.336,1.49602122]
[1771773406581,1.5163759,83.369,83.331,42.00117602]
[1771773406582,1.5163759,83.369,83.338,1.49602122]
[1771773407665,1.5163759,83.369,83.34,1.49602122]
[1771773408655,1.5163759,83.369,83.342,1.49602122]
[1771773410669,1.5163759,83.369,83.344,1.49602122]
[1771773410852,3.09885565,83.37,83.346,1.49602122]
[1771773411374,1.5163759,83.369,83.346,1.49602122]
[1771773412374,1.5163759,83.359,83.342,11.99863834]
[1771773412962,1.5163759,83.359,83.343,1.49602122]
[1771773413162,1.5163759,83.369,83.343,1.49602122]
[1771773413663,1.5163759,83.369,83.345,1.49602122]
[1771773414170,1.5163759,83.369,83.345,55.49602122]
[1771773416367,1.5163759,83.367,83.345,54.0]
[1771773416880,3.09885565,83.36,83.345,54.0]
[1771773417380,1.5163759,83.36,83.345,54.0]
[1771773419075,1.5163759,83.36,83.344,11.99846419]
[1771773420170,1.5163759,83.366,83.346,11.99817627]
[1771773420359,1.5163759,83.366,83.346,13.49419749]
[1771773420986,1.5163759,83.366,83.346,1.49602122]
[1771773421187,1.5163759,83.364,83.342,54.0]
[1771773421590,3.09885565,83.36,83.342,54.0]
[1771773421891,1.5163759,83.365,83.344,1.49602122]
[1771773423463,1.5163759,83.359,83.321,1.49602122]
[1771773423674,1.5163759,83.349,83.321,1.49602122]
[1771773423984,25.46238257,83.348,83.321,1.49602122]
[1771773424571,25.46238257,83.348,83.322,1.49602122]
[1771773425581,23.94600667,83.348,83.322,1.49602122]
[1771773428066,23.94600667,83.348,83.325,1.50164797]
[1771773429785,23.94600667,83.348,83.327,1.50164797]
[1771773434483,23.94600667,83.348,83.329,1.55796637]
[1771773437688,23.94600667,83.348,83.33,12.00048001]
[1771773437876,23.94600667,83.348,83.331,1.55796637]
[1771773439190,23.94600667,83.348,83.332,54.0]
[1771773439383,23.94600667,83.348,83.333,1.55796637]
[1771773439888,1.46243002,83.347,83.332,54.0]
[1771773440895,1.46243002,83.347,83.333,1.55796637]
[1771773441989,23.94600667,83.348,83.335,1.55796637]
[1771773443192,1.46243002,83.347,83.332,54.0]
[1771773444082,1.46243002,83.347,83.325,66.00107631]
[1771773444276,1.46243002,83.347,83.325,67.55904268]
[1771773444592,1.46243002,83.346,83.325,67.55904268]
[1771773444793,1.46243002,83.346,83.326,1.55796637]
[1771773445694,1.46243002,83.346,83.297,5.36086188]
[1771773445695,1.46243002,83.339,83.3,0.1]
[1771773445881,1.46243002,83.319,83.292,12.00595495]
[1771773446083,1.46243002,83.299,83.251,1.55796637]
[1771773446291,3.69383402,83.341,83.252,1.55796637]
[1771773446292,0.28432314,83.34,83.252,1.55796637]
[1771773446498,3.09885565,83.32,83.255,1.55796637]
[1771773446802,3.09885565,83.32,83.259,1.55796637]
[1771773446990,3.09885565,83.31,83.254,3.69383402]
[1771773447201,3.09885565,83.31,83.275,1.55796637]
[1771773447500,3.09885565,83.3,83.259,1.55796637]
[1771773447700,3.09885565,83.29,83.259,1.55796637]
[1771773447899,3.09885565,83.28,83.25,0.1]
[1771773448200,4.56128567,83.27,83.25,0.1]
[1771773448498,1.46243002,83.269,83.25,0.1]
[1771773450701,1.46243002,83.267,83.25,0.1]
[1771773451103,1.46243002,83.259,83.244,54.0]
[1771773451405,3.09885565,83.26,83.244,54.0]
[1771773451406,1.46243002,83.257,83.244,54.0]
[1771773451582,23.94600667,83.258,83.244,54.0]
[1771773451782,23.94600667,83.258,83.244,55.55796637]
[1771773451982,1.46243002,83.249,83.231,8.2212709]
[1771773452201,1.46243002,83.239,83.222,12.0160049]
[1771773452401,1.46243002,83.239,83.218,1.55796637]
[1771773452790,3.09885565,83.24,83.218,1.55796637]
[1771773453398,3.09885565,83.23,83.211,1.56769935]
[1771773454087,3.09885565,83.24,83.212,1.56769935]
[1771773455311,3.10626154,83.25,83.212,1.56769935]
[1771773455508,3.10626154,83.25,83.216,1.56769935]
[1771773455889,3.10626154,83.24,83.216,1.56769935]
[1771773456090,12.01359939,83.239,83.208,1.56769935]
[1771773456294,3.10626154,83.23,83.208,1.56769935]
[1771773457011,12.01359939,83.239,83.208,1.56769935]
[1771773457201,3.10626154,83.23,83.208,1.56769935]
[1771773457405,12.01359939,83.239,83.208,1.56769935]
[1771773458111,12.01359939,83.239,83.21,1.56769935]
[1771773459412,12.01264092,83.246,83.211,1.56769935]
[1771773460700,3.10626154,83.22,83.173,12.0231325]
[1771773460896,3.10626154,83.21,83.174,1.56769935]
[1771773461096,3.10626154,83.21,83.176,1.56769935]
[1771773462627,3.10626154,83.21,83.178,1.56769935]
[1771773464203,12.01793075,83.209,83.178,1.56769935]
[1771773464613,12.01793075,83.209,83.18,1.56769935]
[1771773464807,3.10626154,83.2,83.18,1.56769935]
[1771773465217,12.01793075,83.209,83.18,1.56769935]
[1771773465529,12.01713793,83.215,83.18,1.56769935]
[1771773465698,0.28432314,83.239,83.196,1.56769935]
[1771773465699,12.01359939,83.239,83.196,1.56769935]
[1771773466199,3.10626154,83.22,83.196,1.56769935]
[1771773466401,3.10626154,83.21,83.189,1.56769935]
[1771773466600,3.10626154,83.22,83.19,13.58837491]
[1771773466810,3.10626154,83.22,83.17,4.60383402]
[1771773466811,3.10626154,83.22,83.191,1.56769935]
[1771773467311,1.70608391,83.219,83.162,6.49958934]
[1771773467514,6.49958934,83.15,83.047,8.02359016]
[1771773467714,0.28432314,83.199,83.051,3.69383402]
[1771773467909,3.10626154,83.16,83.077,19.77196351]
[1771773468108,3.10626154,83.15,83.107,54.08]
[1771773468312,3.10626154,83.15,83.107,66.11268076]
[1771773468515,3.10626154,83.13,83.107,66.11268076]
[1771773468717,12.02823604,83.138,83.107,66.11268076]
[1771773468905,12.02823604,83.138,83.107,65.11268076]
[1771773468906,3.10626154,83.13,83.107,65.11268076]
[1771773469307,8.34256605,83.13,83.108,1.5715993]
[1771773469508,8.34256605,83.14,83.108,1.5715993]
[1771773469803,8.34256605,83.14,83.107,95.19438266]
[1771773469804,3.69383402,83.162,83.116,1.5715993]
[1771773470008,3.69383402,83.157,83.131,0.28432314]
[1771773470202,3.69383402,83.157,83.132,1.5715993]
[1771773470716,8.34256605,83.15,83.134,1.5715993]
[1771773471816,1.42176077,83.175,83.135,1.44158224]
[1771773472022,8.34256605,83.16,83.135,1.44158224]
[1771773472324,5.18825477,83.16,83.137,1.44158224]
[1771773472514,6.77437752,83.16,83.133,12.02891751]
[1771773472905,8.34256605,83.17,83.12,0.28432314]
[1771773474325,8.34256605,83.17,83.122,5.64518502]
[1771773475407,1.57822842,83.175,83.128,5.64518502]
[1771773475606,1.57822842,83.175,83.13,5.64518502]
[1771773475826,1.57822842,83.175,83.132,5.64518502]
[1771773476026,1.57822842,83.183,83.136,5.64518502]
[1771773476226,1.57822842,83.183,83.136,48.16441876]
[1771773476410,1.57822842,83.183,83.138,5.64518502]
[1771773476612,1.57822842,83.183,83.138,48.16441876]
[1771773477126,8.34256605,83.18,83.138,42.80355688]
[1771773477323,1.57822842,83.159,83.129,0.28432314]
[1771773477524,20.36762502,83.16,83.128,12.02964103]
[1771773477824,1.57822842,83.161,83.129,0.28432314]
[1771773478025,1.57822842,83.169,83.129,0.28432314]